Cogmind - Beta 16.1 @@@ ROGUE MODE // 2026.03.02 @ 21:14:03 Player: YouButSmellier Result: Destroyed by D-53 Grenadier with Mini Grenade Launcher Performance ------------- Evolutions (0) 0 Regions Visited (2) 400 Robots Destroyed (25) 125 Value Destroyed (454) 454 Prototype IDs (0) 0 Alien Tech Used (0) 0 Bonus (0) 0 TOTAL SCORE: 979 Bonus ------- None Cogmind --------- Core Integrity 0/250 Matter 295/300 Energy 98/100 System Corruption 0% Temperature Cool (1) Movement Treading (240) Ox1 Location -10/Mines Parts ------- > --- POWER (1) -------- (None) > --- PROPULSION (2) --- Light Treads > --- UTILITY (2) ------ High-capacity Storage Unit Targeting Computer > --- WEAPON (2) ------- (None) > --- INVENTORY (20) --- Ion Engine Light Treads Heat Sink Visual Processing Unit Sensor Array Signal Interpreter Terrain Scanner Transport Network Coupler Utility Shielding Light Armor Plating Light Cannon Light Cannon Grenade Launcher Datajack Peak State ------------ > --- POWER ------------ Ion Engine > --- PROPULSION ------- Light Treads Light Treads > --- UTILITY ---------- High-capacity Storage Unit Targeting Computer > --- WEAPON ----------- Medium Laser Small Laser > --- INVENTORY -------- Light Ion Engine Heat Sink Medium Matter Pod Sensor Array Signal Interpreter Terrain Scanner Transport Network Coupler Light Cannon Light Cannon Datajack [Rating: 8] Favorites ----------- Power Ion Engine Engine Ion Engine Propulsion Light Treads Treads Light Treads Utility Targeting Computer Storage High-capacity Storage Unit Processor Targeting Computer Weapon Medium Laser Energy Gun Medium Laser Ballistic Gun Assault Rifle Ballistic Cannon Light Cannon Build | -11 -10 -10 ------- Run | Yrd Mat Min Slots Evolved . | . . . Power . | . . . Propulsion . | . . . Utility . | . . . Weapon . | . . . Parts Attached 17 | 7 8 2 Power 3 | 1 2 . Engine 3 | 1 2 . Core . | . . . Reactor . | . . . Propulsion 3 | 2 . 1 Treads 3 | 2 . 1 Leg . | . . . Wheel . | . . . Hover . | . . . Flight . | . . . Utility 4 | 2 2 . Device . | . . . Storage 3 | 2 1 . Processor 1 | . 1 . Hackware . | . . . Protection . | . . . Artifact . | . . . Weapon 7 | 2 4 1 Energy Gun 4 | 2 2 . Energy Cannon . | . . . Ballistic Gun 2 | . 1 1 Ballistic Cannon 1 | . 1 . Launcher . | . . . Special Weapon . | . . . Impact Weapon . | . . . Slashing Weapon . | . . . Piercing Weapon . | . . . Special Melee Weapon . | . . . Unidentified Prototypes . | . . . Parts Lost 6 | . . 6 Power 1 | . . 1 Propulsion 2 | . . 2 Utility . | . . . Weapon 3 | . . 3 Highest Loss Streak 5 | . . 5 To Critical Strikes . | . . . Average Backups 11 | 2 11 16 Power . | . 1 1 Propulsion 1 | 1 1 2 Utility 5 | . 5 8 Weapon 2 | . 2 3 Tool/Special . | . . . Unused Backups 18 | . 4 14 Power 2 | . . 2 Propulsion 3 | . 2 1 Utility 9 | . 1 8 Weapon 2 | . . 2 Tool/Special 2 | . 1 1 Average Slot Usage (%) 98 | . 98 97 Engine 13 | . 13 13 Treads 27 | . 26 27 Storage 15 | . 16 14 Processor 12 | . 11 14 Energy Gun 17 | . 17 13 Ballistic Gun 10 | . 9 13 Peak Build Rating 8 | 7 8 8 Average Rating 7 | 4 7 7 On Entrance 5 | . 7 8 Avg Prop Armor Cover (%) . | . . . Naked Turns . | . . . Heaviest Build 49 | 14 49 49 Greatest Support 40 | 40 40 40 Greatest Overweight (x) 15 | 1 15 1 Average Overweight (x) . | . . 1 Largest Inventory Capacity 20 | 8 20 20 Average Capacity 17 | 6 17 20 Most Carried 17 | 4 17 17 Average Carried 11 | 2 11 15 Final Capacity 20 | 8 20 20 Final Carried 16 | 4 16 14 Class Distribution -------------------- 100% | Mutant Dominant Class ---------------- Mutant | -10/Materials Mutant | -10/Mines Resources | -11 -10 -10 ----------- Run | Yrd Mat Min Matter Collected 604 | 310 206 88 Remotely . | . . . Salvage Created 934 | 84 702 148 Parts 53 | 5 40 8 Haulers Intercepted 2 | . 2 . Recyclers Shooed 4 | . 3 1 Parts Field Recycled . | . . . Retrieved Matter . | . . . Parts Self-Destructed . | . . . Prevented . | . . . Parts Restored . | . . . Kills | -11 -10 -10 ------- Run | Yrd Mat Min Combat Hostiles Destroyed 11 | . 9 2 Guns 11 | . 9 2 Classes Destroyed 8 | 3 5 . Worker 1 | 1 . . Tunneler 2 | 1 1 . Hauler 2 | . 2 . Recycler 5 | 1 3 1 Operator 1 | . 1 . Watcher 3 | . 3 . Swarmer 3 | . 3 . Grunt 8 | . 6 2 Best Kill Streak 5 | 2 5 3 Combat Bots Only 4 | . 4 2 Max Kills in Single Turn 2 | 1 2 1 Gunslinging . | . . . Exploded . | . . . Melee . | . . . Uniques/NPCs Destroyed . | . . . Combat | -11 -10 -10 -------- Run | Yrd Mat Min Hostile Shots Fired 67 | . 44 23 Missed 14 | . 11 3 Hits 53 | . 33 20 Projectile 53 | . 33 20 AOE 15 | . . 15 Critical Strikes 1 | . 1 . Damage Taken 1109 | . 435 674 Core 266 | . 81 185 Absorbed by Shields . | . . . Core Remaining (%) 100 | 100 . . Volleys Fired 75 | 8 55 12 Largest 2 | 2 2 2 Hottest 90 | 80 90 70 Shots Fired 149 | 16 110 23 Gun 149 | 16 110 23 Cannon . | . . . Launcher . | . . . Special . | . . . Kinetic 38 | . 27 11 Thermal 111 | 16 83 12 Explosive . | . . . Electromagnetic . | . . . Robot Hit Streak 9 | 4 9 8 Robot Miss Streak 3 | 2 3 3 Penetration Max . | . . . Secondary Targets . | . . . Shots Hit Robots 97 | 9 76 12 Core Hits 45 | 4 34 7 Critical Kills . | . . . Critical Parts Destroyed . | . . . Critical Strikes 4 | . 3 1 Burn 4 | . 3 1 Melee Attacks . | . . . Impact . | . . . Slashing . | . . . Piercing . | . . . Sneak Attacks . | . . . Combat Hostiles . | . . . Follow-up Attacks . | . . . Damage Inflicted 1171 | 102 922 147 Guns 1169 | 102 922 145 Cannons . | . . . Explosions . | . . . Melee . | . . . Ramming 2 | . . 2 Kinetic 274 | . 206 68 Thermal 895 | 102 716 77 Explosive . | . . . Electromagnetic . | . . . Impact . | . . . Slashing . | . . . Piercing . | . . . Highest Corruption . | . . . Average Corruption . | . . . Corruption Purged . | . . . Corruption Blocked . | . . . Overload Shots . | . . . Overflow Damage . | . . . Projectiles . | . . . Explosions . | . . . Melee . | . . . Knockbacks . | . . . Impact . | . . . Kinetic . | . . . Secondary . | . . . Self-Inflicted Damage . | . . . Shots . | . . . Rammed 2 | . 1 1 Targets Rammed 2 | . 1 1 Kicked . | . . . Crushed . | . . . Highest Temperature 150 | 36 150 71 Average Temperature 40 | 18 43 37 Received Heat Transfer 270 | . 195 75 Siege Activations . | . . . Martial Activations . | . . . Shielding Activations . | . . . Robots Disrupted . | . . . Combat Hostiles . | . . . Robots Corrupted . | . . . Combat Hostiles . | . . . Parts Fried . | . . . Impact Corruptions . | . . . Robots Melted . | . . . Combat Hostiles . | . . . Parts Melted 6 | . 6 . Heat Transferred 2640 | 225 2119 296 Parts Sabotaged . | . . . Parts Stolen . | . . . Parts Stripped . | . . . Power Chain Reactions . | . . . Alert | -11 -10 -10 ------- Run | Yrd Mat Min Maximum Alert Level . | . . . Low Security (%) 100 | 100 100 100 Level 1 . | . . . Level 2 . | . . . Level 3 . | . . . Level 4 . | . . . Level 5 . | . . . High Security . | . . . Max Security . | . . . Peak Influence 138 | 10 138 35 Initial 7 | . . 7 Average 28 | 1 33 5 Influence Increases 408 | 15 338 55 Destroy 0b10 Robot/C 220 | . 180 40 Destroy 0b10 Robot/NC 70 | 15 50 5 Destroy Leader 60 | . 50 10 Successful Hack 12 | . 12 . Destroy Structure 1 | . 1 . Lose Combat Pursuer 45 | . 45 . Influence Decreases 408 | 15 317 76 Entered New Map 14 | . . 14 Time Decay 384 | 15 317 52 Lost Part 10 | . . 10 Squads Dispatched 2 | . 2 . Investigation 1 | . 1 . Extermination . | . . . Reinforcement 1 | . 1 . Assault . | . . . Garrison . | . . . Intercept . | . . . Searches Triggered . | . . . Construction Impeded . | . . . Haulers Reinforced . | . . . Active Scanning Responses . | . . . Cargo Convoy Interrupts . | . . . Stealth | -11 -10 -10 --------- Run | Yrd Mat Min Distress Signals 1 | . 1 . Communications Jammed . | . . . Distress Signals . | . . . Times Spotted 22 | . 18 4 Peak Tracking Total 3 | . 3 2 Tactical Retreats 3 | . 3 . Traps | -11 -10 -10 ------- Run | Yrd Mat Min Traps Triggered 4 | . 4 . Indirectly . | . . . Trap Hack Attempts . | . . . Triggered . | . . . Disarmed . | . . . Reprogrammed . | . . . Reused . | . . . Traps Extracted . | . . . Installed . | . . . Triggered . | . . . Machines | -11 -10 -10 ---------- Run | Yrd Mat Min Machines Disabled . | . . . Max in Single Turn . | . . . Machines Repaired . | . . . Machines Dismantled . | . . . Machines Sabotaged . | . . . Overloaded Fab Kills . | . . . Hacking | -11 -10 -10 --------- Run | Yrd Mat Min Machines Accessed 9 | . 9 . Terminals 7 | . 7 . Fabricators . | . . . Repair Stations . | . . . Recycling Units 2 | . 2 . Scanalyzers . | . . . Garrison Access . | . . . Total Hacks 21 | . 21 . Successful 7 | . 7 . Failed 14 | . 14 . Catastrophic 7 | . 7 . Database Lockouts . | . . . Manual 17 | . 17 . Terminals 18 | . 18 . Fabricators . | . . . Repair Stations . | . . . Recycling Units 3 | . 3 . Scanalyzers . | . . . Garrison Access . | . . . Terminal Hacks 4 | . 4 . Terminal Index 1 | . 1 . Alert Level 1 | . 1 . Transport Status 1 | . 1 . Recall Investigation 1 | . 1 . Fabricator Hacks . | . . . Repair Station Hacks . | . . . Recycling Unit Hacks 2 | . 2 . Report Inventory 2 | . 2 . Scanalyzer . | . . . Garrison Access Hacks . | . . . Unauthorized Hacks 1 | . 1 . Terminals 1 | . 1 . Assimilate 1 | . 1 . Fabricators . | . . . Repair Stations . | . . . Recycling Units . | . . . Scanalyzers . | . . . Garrison Access . | . . . Data Cores Recovered . | . . . Used . | . . . Hacking Detections 8 | . 8 . Full Trace Events . | . . . Feedback Events . | . . . Feedback Blocked . | . . . Robot Schematics Acquired . | . . . Robots Built . | . . . Authchips . | . . . Time . | . . . Total Robot Build Rating . | . . . Part Schematics Acquired . | . . . Parts Built . | . . . Authchips . | . . . Time . | . . . Total Part Build Rating . | . . . Part Studies Acquired . | . . . Parts Repaired . | . . . Time . | . . . Parts Recycled . | . . . Recycled Matter . | . . . Retrieved Matter . | . . . Retrieved Components . | . . . Parts Scanalyzed . | . . . Part Schematics Acquired . | . . . Parts Damaged . | . . . Bothacking | -11 -10 -10 ------------ Run | Yrd Mat Min Used RIF Installer . | . . . Robots Hacked . | . . . Non-combat . | . . . Combat . | . . . Robot Hacks Applied . | . . . Relay Couplers Released . | . . . Fabnet Peak Effective % . | . . . Robots Rewired . | . . . Allies Hacked . | . . . Hacks Repelled . | . . . Allies | -11 -10 -10 -------- Run | Yrd Mat Min Total Allies 3 | . . 3 Largest Group 3 | . . 3 Highest-Rated Group 40 | . . 40 Highest-Rated Ally 16 | . . 16 Total Orders 1 | . . 1 GUARD 1 | . . 1 Ally Attacks 13 | . . 13 Total Damage 130 | . . 130 Kills . | . . . Allies Corrupted . | . . . Allies Melted . | . . . Intel | -11 -10 -10 ------- Run | Yrd Mat Min Active Infowar (turns) . | . . . Robot Analysis Total . | . . . Derelict Logs Recovered . | . . . Drone Launches . | . . . Drone Recoveries . | . . . Exploration | -11 -10 -10 ------------- Run | Yrd Mat Min Turns Passed 2242 | 132 1839 271 Spaces Moved 822 | 63 668 91 Core 10 | 7 3 . Treads 812 | 56 665 91 Legs . | . . . Wheels . | . . . Hover . | . . . Flight . | . . . Fastest Speed 50 | 50 160 240 Average Speed 219 | 150 223 240 Slowest Speed 800 | 160 800 240 Overloaded Moves . | . . . Propulsion Burnouts . | . . . Robots Hopped . | . . . Potential Cave-ins . | . . . Cave-ins Triggered . | . . . Exploration Rate (%) 43 | 4 99 26 Regions Visited 2 Branch Regions 1 Pre-discovered Areas . | . . . Known Exits Taken . | . . . Unknown Exits Taken 2 | 1 1 . Scrap Searched 1 | . . 1 Spaces Dug . | . . . Terrain Destroyed . | . . . Melee . | . . . Projectile . | . . . AOE . | . . . Terrain Rammed . | . . . Walls Destroyed . | . . . Machines Disabled . | . . . Actions | -11 -10 -10 --------- Run | Yrd Mat Min Total 1107 | 81 905 121 Wait 152 | . 143 9 Move 820 | 62 667 91 Hop . | . . . Pick Up 22 | 4 16 2 Fast Attach 13 | 7 6 . Attach 3 | . 1 2 Detach 1 | . 1 . Swap 7 | . 5 2 Drop 12 | . 10 2 Fire 75 | 8 55 12 Melee . | . . . Ram . | . . . Kick . | . . . Crush 2 | . 1 1 Escape Stasis . | . . . Rewire . | . . . Trap . | . . . Miscellaneous . | . . . Route ------- -11/Scrapyard -10/Materials (discovered 6 exits: [*Mat x3] / [*Min x2] / [*Sub]) -10/Mines (discovered 1 exit: [*Mat]) History --------- Turn | Location | Event 15 | -11/Scrapyard | Discovered new exit (range 14) 133 | -11/Scrapyard | Entered Materials 321 | -10/Materials | Build established: Mutant 370 | -10/Materials | Discovered new exit (range 15) 882 | -10/Materials | Discovered new exit (range 12) 1028 | -10/Materials | Discovered new exit (range 6) 1397 | -10/Materials | Discovered new exit (range 15) 1611 | -10/Materials | Discovered new exit (range 8) 1917 | -10/Materials | Discovered new exit (range 14) 1972 | -10/Materials | Entered Mines 2008 | -10/Mines | Discovered new exit (range 12) 2193 | -10/Mines | Assisted by bots powering up and referring to "LRC-V3" 2206 | -10/Mines | Assembled infested the area 2228 | -10/Mines | Core integrity fell below 50% 2242 | -10/Mines | Core integrity fell below 20% 2243 | -10/Mines | Destroyed by D-53 Grenadier with Mini Grenade Launcher Last Messages --------------- 02193_ Trooper 1a: "Hello LRC-V3. What is your command?" 02193_ Mercenary 1a: "Hello LRC-V3. What is your command?" 02193_ Trooper 1b: "Hello LRC-V3. What is your command?" 02193_ K-01 Serf collects debris. 02206_ ALERT: Infestation in the mines, dispatching Demolisher response squad. 02226_ D-53 Grenadier unfolds itself. 02227_ Mercenary 1a destroyed. 02229_ Trooper 1a destroyed. 02231_ Trooper 1b destroyed. 02231_ Ion Engine destroyed. 02231_ Lgt. Treads destroyed. 02233_ The unstable cave ceiling collapses. 02235_ Assault Rifle destroyed. 02237_ Med. Laser destroyed. 02237_ Lgt. Treads destroyed. 02241_ K-01 Serf collects debris. Map ----- +----------------------------------------------------+ | ??????????????????????????????????????????? | | ####??####????????????????????????????????? | | #### ##???????????????????????????????? | | ## ##??????????????????????????????? | | #??????????????????????????????? | | [ #??????????????????????????????? | | #??????????????????????????????? | | ##??????????????????????????????? | | ##???????????????????????????????? | | #????????????????????????????????? | | < ##???????????????????????????????? | | #???????????????????????????????? | | ## #???????????????????????????????? | | ####### #???????????????????????????????? | | ??????# #???????????????????????????????? | | ??????# #????????????????????????? ##??? | | ??????# ###???????????????????????? #??? | | ??????# #??????#####??#########??? #??? | | ??????# #??????# #?## ### #???? | | ??????# #??????# ### #????? | | ??????# #??????# #????? | | ??????# #??????# #????? | | ??????# #?????## ##????? | | ??????#!#?????# ## ###?????? | | ??????# ####### #?###???????? | | ??????#*=[kr ! d @ #???????????? | | ??????#=!% %%[ d #???????????? | | ??????######## # ##???????????? | | ?????????????#### # ##????????????? | | ????????????????# ## # ##?????????????? | | ????????????????# #### #??????????????? | | ???????????????? ??? #?????????????? | | ???????????????? ##?r ?????????????? | | ??????????????? #?? #????????????? | | ??????????????? ##?? ##????????????? | | ??????????????" ##??## ## ##?????????????? | | ???????????????? ?????# ?? #??????????????? | | ???????????????? ?????# ?? #??????????????? | | ????????????????#?????# ?? ???????????????? | | ??????????????????????#??? ???????????????? | | ?????????????????????????? ???????????????? | | ??????????????????????????????????????????? | | ??????????????????????????????????????????? | | ??????????????????????????????????????????? | | ??????????????????????????????????????????? | | ??????????????????????????????????????????? | | ??????????????????????????????????????????? | | ??????????????????????????????????????????? | | ??????????????????????????????????????????? | | ??????????????????????????????????????????? | +----------------------------------------------------+ Best States ------------- Heat Dissipation 25 Energy Generation 10 Energy Capacity 250 Matter Stores 400 Matter Capacity 400 Sight Range 16 Terrain Scan Density 10 Evasion (%) 40 Targeting Accuracy 5 Recoil Reduction 2 Item Schematics ----------------- None Robot Schematics ------------------ None Fabricated ------------ Nothing Repaired ---------- Nothing Studied --------- None Alien Tech Used ----------------- None Achievements -------------- True Hacker Challenges ------------ None Game ------ Seed HelicalGrenadeConstruct Manual? 0 Play Time 00:25:22 Cumulative 21.9 hours Start 2026.03.02 @ 20:44:39 End 2026.03.02 @ 21:14:03 Sessions 1 Manual Loads 0 Difficulty Rogue Special Mode None Game No. 10 Rogue 8 Adventurer 2 Explorer 0 Win Type - Total 0 Types 0/0/0/0/0/0/0/0/0/0 Lore% 9 Gallery% 19 Achievement% 13 Wizard Run 0 Options --------- Layout 1 ASCII 0 Keyboard 0 Movement Mouse Keybinds 0 Fullscreen 1 Font 32/Terminus Map View 50x35 Zoom Use 0% Tactical HUD 1 Map Filters NONE Filters NONE Steam 1 RUN: 6b6209c4-197d-4706-80f9-9238bf290590